bitfinex/quotes_SOLUSD_20241028
["timestamp","ask_amount","ask_price","bid_price","bid_amount"]
[1730132241986,36.32937366,174.67,174.65,20.0396]
[1730132243582,36.32937366,174.67,174.65,31.4132236]
[1730132244383,36.32937366,174.67,174.65,20.0396]
[1730132245198,36.32937366,174.67,174.64,11.98548513]
[1730132245401,36.32937366,174.67,174.64,17.71128513]
[1730132245607,36.32937366,174.67,174.64,32.02638513]
[1730132248398,36.32937366,174.67,174.64,20.65276153]
[1730132249614,15.3596,174.66,174.63,5.7263]
[1730132250491,15.3596,174.66,174.63,20.0422]
[1730132250709,15.3596,174.66,174.63,31.4158236]
[1730132251210,36.32937366,174.67,174.63,31.4158236]
[1730132251916,36.32937366,174.67,174.65,5.7257]
[1730132253096,36.32937366,174.67,174.64,5.726]
[1730132253294,36.32937366,174.67,174.64,17.0996236]
[1730132253494,36.32937366,174.67,174.64,31.4147236]
[1730132254015,36.32937366,174.67,174.64,20.0411]
[1730132257589,36.32937366,174.67,174.64,14.3151]
[1730132258519,47.70299726,174.67,174.64,14.3151]
[1730132259503,36.32937366,174.67,174.64,25.6887236]
[1730132259818,36.32937366,174.67,174.64,31.4147236]
[1730132260701,36.32937366,174.67,174.64,20.0411]
[1730132266131,36.32937366,174.67,174.65,11.3736236]
[1730132266335,36.32937366,174.67,174.64,31.3736236]
[1730132266629,36.32937366,174.67,174.63,11.3736236]
[1730132266827,36.32937366,174.67,174.64,20.0]
[1730132267831,47.70299726,174.67,174.63,5.7263]
[1730132268208,36.32937366,174.67,174.63,5.7263]
[1730132268731,36.32937366,174.67,174.63,17.0999236]
[1730132269028,36.32937366,174.67,174.65,14.3143]
[1730132270034,47.70299726,174.67,174.64,5.726]
[1730132271105,47.70299726,174.67,174.62,0.63860713]
[1730132271303,36.32937366,174.67,174.63,5.7263]
[1730132271805,47.70299726,174.67,174.63,5.7263]
[1730132272312,47.70299726,174.67,174.63,20.0422]
[1730132274541,11.3736236,174.66,174.63,20.0422]
[1730132275029,11.3736236,174.65,174.63,14.3159]
[1730132275215,11.3736236,174.65,174.63,20.0422]
[1730132275813,11.3736236,174.65,174.59,11.3736236]
[1730132276019,11.3736236,174.65,174.6,5.7273]
[1730132276421,11.3736236,174.63,174.6,20.0457]
[1730132276732,15.6555,174.59,174.51,5.7303]
[1730132276905,11.3736236,174.53,174.51,5.7303]
[1730132277607,11.3736236,174.52,174.51,20.0561]
[1730132277824,91.8799,174.59,174.51,25.6994236]
[1730132278035,11.3736236,174.57,174.52,11.3736236]
[1730132278830,11.3736236,174.58,174.53,20.0]
[1730132279531,11.3736236,174.57,174.53,20.0]
[1730132279839,11.3736236,174.57,174.53,20.0537]
[1730132281143,11.3736236,174.58,174.53,20.0537]
[1730132281347,11.3736236,174.59,174.54,20.0]
[1730132281833,11.3736236,174.59,174.54,31.3736236]
[1730132282013,28.4155,174.63,174.5,15.5929]
[1730132282014,11.3736236,174.62,174.57,11.3736236]
[1730132282213,27.8513236,174.63,174.57,11.3736236]
[1730132282840,16.4777,174.63,174.57,11.3736236]
[1730132283012,70.0,174.66,174.56,20.0]
[1730132283013,11.3736236,174.66,174.6,11.3736236]
[1730132283719,64.27629726,174.67,174.61,11.3736236]
[1730132283918,52.90267366,174.67,174.62,11.3736236]
[1730132284524,64.27629726,174.67,174.62,11.3736236]
[1730132285143,11.3736236,174.66,174.63,5.7263]
[1730132285642,64.27629726,174.67,174.63,5.7263]
[1730132286335,64.27629726,174.67,174.63,14.3159]
[1730132286517,52.90267366,174.67,174.63,14.3159]
[1730132286845,36.32937366,174.67,174.64,31.3736236]
[1730132287238,47.70299726,174.67,174.63,14.3159]
[1730132287728,36.32937366,174.67,174.63,14.3159]
[1730132288131,36.32937366,174.67,174.65,11.3736236]
[1730132288332,36.32937366,174.67,174.66,5.7254]
[1730132289954,36.32937366,174.67,174.66,17.0990236]
[1730132290322,36.32937366,174.67,174.66,61.57446617]
[1730132291128,0.5795313,174.73,174.67,43.776884]
[1730132291327,0.5795313,174.73,174.72,11.3736236]
[1730132291525,30.5795313,174.73,174.72,11.3736236]
[1730132292358,30.5795313,174.73,174.72,17.0970236]
[1730132292651,0.5795313,174.73,174.72,37.0970236]
[1730132295049,0.5795313,174.73,174.72,20.0]
[1730132295236,0.5795313,174.73,174.72,11.3736236]
[1730132295748,0.5795313,174.73,174.72,17.0970236]
[1730132295955,0.5795313,174.73,174.71,14.309]
[1730132296261,30.0,174.72,174.7,11.3736236]
[1730132296431,30.0,174.72,174.69,17.79618833]
[1730132296635,30.0,174.72,174.7,11.3736236]
[1730132297560,30.0,174.72,174.7,17.0976236]
[1730132297939,30.0,174.72,174.71,11.3736236]
[1730132298661,30.0,174.72,174.69,11.3736236]
[1730132299058,30.0,174.72,174.7,11.3736236]
[1730132299467,30.0,174.72,174.71,11.3736236]
[1730132299771,30.0,174.72,174.71,31.3736236]
[1730132301743,30.0,174.72,174.71,37.0973236]
[1730132303663,0.5795313,174.73,174.71,51.4067236]
[1730132303833,0.5795313,174.73,174.72,11.3736236]
[1730132304271,0.5795313,174.73,174.72,31.3736236]
[1730132305436,0.5795313,174.73,174.72,37.0970236]
[1730132306563,0.5795313,174.73,174.72,17.0970236]
[1730132306773,5.8195313,174.73,174.72,17.0970236]
[1730132308065,5.8195313,174.73,174.72,60.8739076]
[1730132309343,0.5795313,174.73,174.72,60.8739076]
[1730132314479,0.5795313,174.73,174.72,25.7234]
[1730132314651,0.5795313,174.73,174.72,37.0970236]
[1730132315862,0.5795313,174.73,174.72,60.8739076]
[1730132316166,15.4241,174.83,174.8,11.3736236]
[1730132316364,30.0,174.81,174.8,11.3736236]
[1730132317467,30.0,174.81,174.8,17.0944236]
[1730132317852,30.0,174.81,174.8,11.3736236]
[1730132318169,30.0,174.81,174.8,17.0944236]
[1730132318556,15.4241,174.83,174.8,17.0944236]
[1730132318756,15.4241,174.83,174.82,11.3736236]
[1730132318955,15.4241,174.83,174.82,17.0937236]
[1730132319550,15.4241,174.87,174.82,31.3941236]
[1730132319754,15.4241,174.87,174.85,11.3736236]
[1730132320076,24.0810549,174.9,174.86,11.3736236]
[1730132320077,12.7074313,174.9,174.86,11.3736236]
[1730132320572,6.9896313,174.9,174.87,11.3736236]
[1730132321971,12.7072313,174.9,174.85,20.0163]
[1730132322273,12.7072313,174.9,174.85,31.3899236]
[1730132322662,12.7072313,174.9,174.86,11.3736236]
[1730132323177,12.7072313,174.9,174.8,0.67556493]
[1730132323368,12.7072313,174.9,174.86,11.3736236]
[1730132323567,6.9896313,174.9,174.86,11.3736236]
[1730132323772,0.5795313,174.9,174.86,11.3736236]
[1730132324275,11.3736236,174.88,174.8,20.67556493]
[1730132324601,11.3736236,174.87,174.82,20.0]
[1730132324760,75.7178,174.89,174.82,20.0]
[1730132324761,75.7178,174.89,174.82,31.3736236]
[1730132324970,11.3736236,174.87,174.82,31.3736236]
[1730132325486,11.3736236,174.87,174.83,5.7198]
[1730132325986,17.0918236,174.88,174.83,5.7198]
[1730132326655,17.0918236,174.88,174.83,17.0934236]
[1730132326976,5.7182,174.88,174.83,17.0934236]
[1730132329873,17.0918236,174.88,174.83,17.0934236]
[1730132330072,11.3736236,174.87,174.83,5.7198]
[1730132330667,70.0,174.89,174.86,11.3736236]
[1730132330882,0.5795313,174.9,174.87,11.3736236]
[1730132331259,70.5795313,174.9,174.85,11.3736236]
[1730132331482,0.5795313,174.9,174.87,11.3736236]
[1730132331655,81.9531549,174.9,174.84,20.0]
[1730132331855,76.2971313,174.9,174.83,31.3930236]
[1730132332087,70.5795313,174.9,174.85,11.3736236]
[1730132332259,81.9531549,174.9,174.85,11.3736236]
[1730132332459,87.6706549,174.9,174.84,11.3736236]
[1730132332659,11.3736236,174.88,174.83,11.3736236]
[1730132333082,11.3736236,174.89,174.83,11.3736236]
[1730132333400,81.3736236,174.88,174.83,11.3736236]
[1730132333572,70.0,174.88,174.83,11.3736236]
[1730132334795,5.7182,174.88,174.84,11.3736236]
[1730132335371,87.6708549,174.9,174.85,11.3736236]
[1730132335570,70.5795313,174.9,174.86,11.3736236]
[1730132335780,11.3736236,174.89,174.84,11.3736236]
[1730132336692,17.0916236,174.89,174.84,11.3736236]
[1730132336994,81.3736236,174.88,174.83,14.2996]
[1730132337289,11.9531549,174.9,174.84,11.3736236]
[1730132337498,11.9531549,174.9,174.85,11.3736236]
[1730132337499,0.5795313,174.9,174.85,11.3736236]
[1730132338601,0.5795313,174.9,174.85,17.0924236]
[1730132339502,11.9531549,174.9,174.84,11.3736236]
[1730132339703,17.6706549,174.9,174.84,31.3917236]
[1730132340009,11.3736236,174.89,174.84,20.0181]
[1730132340300,11.3736236,174.88,174.83,5.7197]
[1730132340487,11.3736236,174.87,174.82,5.7201]
[1730132340679,0.5795313,174.9,174.81,14.301]
[1730132340894,17.6708549,174.9,174.84,11.3736236]
[1730132341102,0.5795313,174.9,174.85,11.3736236]
[1730132341281,70.0,174.87,174.81,20.0214]
[1730132341483,81.3736236,174.87,174.81,31.3950236]
[1730132341691,11.3736236,174.87,174.81,31.3950236]
[1730132341992,75.7178,174.89,174.82,11.3736236]
[1730132342196,17.0914236,174.89,174.84,11.3736236]
[1730132342509,11.9531549,174.9,174.85,11.3736236]
[1730132342802,0.5795313,174.9,174.87,11.3736236]
[1730132343005,0.5795313,174.9,174.89,11.3736236]
[1730132344684,0.5795313,174.9,174.89,17.0914236]
[1730132346288,0.5795313,174.9,174.89,37.0914236]
[1730132346492,0.5795313,174.9,174.89,43.38373137]
[1730132347399,18.24546267,174.9,174.85,24.06670785]
[1730132347599,93.38373137,174.89,174.83,17.66593137]
[1730132348302,93.38373137,174.89,174.81,17.66593137]
[1730132348303,17.66593137,174.87,174.81,17.66593137]
[1730132348600,17.66593137,174.87,174.82,5.7201]
[1730132348903,17.66593137,174.87,174.82,20.0205]
[1730132349088,23.38413137,174.88,174.82,37.68643137]
[1730132349279,17.66593137,174.88,174.82,37.68643137]
[1730132350490,22.61035196,174.88,174.82,37.68643137]
[1730132352134,17.66593137,174.89,174.83,17.66593137]
[1730132352478,17.66593137,174.86,174.82,14.3004]
[1730132352907,17.66593137,174.86,174.82,20.0205]
[1730132353489,17.66593137,174.87,174.82,20.0205]
[1730132354303,17.66593137,174.86,174.82,14.3004]
[1730132354507,17.66593137,174.83,174.79,14.3025]
[1730132354817,17.66593137,174.82,174.79,14.3025]
[1730132355110,93.38443137,174.87,174.79,14.3025]
[1730132355111,17.66593137,174.83,174.79,14.3025]
[1730132355609,17.66593137,174.82,174.79,14.3025]
[1730132355806,17.66593137,174.83,174.79,14.3025]
[1730132356013,86.5514,174.85,174.79,14.3025]
[1730132356014,17.66593137,174.84,174.79,14.3025]
[1730132356899,34.21733137,174.85,174.79,31.96843137]
[1730132357591,39.93643137,174.85,174.79,31.96843137]
[1730132358093,17.66593137,174.84,174.79,14.3025]
[1730132358296,17.66593137,174.84,174.79,20.0236]
[1730132358799,17.66593137,174.83,174.79,20.0236]
[1730132359399,34.21733137,174.85,174.8,17.66593137]
[1730132359599,17.66593137,174.85,174.79,37.68953137]
[1730132361895,17.66593137,174.86,174.81,20.0216]
[1730132362094,17.66593137,174.88,174.83,17.66593137]
[1730132362616,17.66593137,174.88,174.82,17.66593137]
[1730132362821,17.66593137,174.88,174.83,17.66593137]
[1730132364021,17.66593137,174.88,174.84,5.7195]
[1730132365926,17.66593137,174.88,174.83,14.299]
[1730132366513,17.66593137,174.88,174.83,31.96493137]
[1730132366891,34.21733137,174.89,174.84,17.66593137]
[1730132367618,34.21733137,174.89,174.85,5.7191]
[1730132370822,17.66593137,174.86,174.83,14.299]
[1730132370999,17.66593137,174.85,174.8,17.66593137]
[1730132371202,17.66593137,174.84,174.8,14.302]
[1730132371522,17.66593137,174.81,174.78,6.40324956]
[1730132371820,17.66593137,174.8,174.78,0.68204956]
[1730132372327,33.14843137,174.82,174.76,17.66593137]
[1730132372529,17.66593137,174.81,174.75,37.69443137]
[1730132372726,17.66593137,174.8,174.75,37.69443137]
[1730132373034,17.66593137,174.79,174.75,20.0285]
[1730132373207,17.66593137,174.77,174.75,14.3061]
[1730132375419,17.66593137,174.78,174.73,17.66593137]
[1730132376319,17.66593137,174.8,174.74,17.66593137]
[1730132376498,17.66593137,174.8,174.75,17.66593137]
[1730132377912,17.66593137,174.82,174.77,17.66593137]
[1730132378122,17.66593137,174.83,174.77,17.66593137]
[1730132378326,17.66593137,174.83,174.78,17.66593137]
[1730132378702,17.66593137,174.84,174.78,17.66593137]
[1730132378925,15.7746,174.86,174.75,6.77651655]
[1730132378926,17.66593137,174.85,174.8,17.66593137]
[1730132379107,33.44053137,174.86,174.8,17.66593137]
[1730132380026,33.44053137,174.86,174.81,20.0216]
[1730132380241,30.0,174.82,174.81,37.68753137]
[1730132384025,30.0,174.82,174.81,57.68753137]
[1730132384202,86.9742313,174.9,174.81,57.68753137]
[1730132384403,16.9742313,174.9,174.86,17.66593137]
[1730132384629,30.0,174.87,174.86,17.66593137]
[1730132384818,30.0,174.87,174.85,17.66593137]
[1730132386327,30.0,174.87,174.86,17.66593137]
[1730132386734,30.0,174.87,174.85,31.96353137]
[1730132388424,30.0,174.87,174.85,37.68263137]
[1730132389334,30.0,174.87,174.85,20.0167]
[1730132390741,30.0,174.87,174.85,37.68263137]
[1730132392541,30.0,174.87,174.85,14.2976]
[1730132393042,30.0,174.87,174.85,20.0167]
[1730132393636,30.0,174.87,174.84,0.73952956]
[1730132393637,33.53963137,174.86,174.84,0.73952956]
[1730132393839,70.0,174.81,174.75,14.3058]
[1730132394010,17.66593137,174.78,174.73,5.7229]
[1730132394419,75.24,174.85,174.77,17.66593137]
[1730132394645,22.90593137,174.85,174.79,17.66593137]
[1730132394843,5.24,174.8,174.78,17.66593137]
[1730132395137,17.66593137,174.84,174.78,17.66593137]
[1730132395540,17.66593137,174.84,174.79,5.7211]
[1730132396928,17.66593137,174.84,174.79,20.0239]
[1730132397835,33.53963137,174.86,174.8,37.66593137]
[1730132398543,15.8737,174.86,174.82,20.0]
[1730132398743,30.0,174.83,174.82,20.0]
[1730132398940,30.0,174.83,174.82,37.66593137]
[1730132399135,30.0,174.83,174.82,20.0]
[1730132399449,30.0,174.83,174.81,25.7204]
[1730132400014,30.0,174.83,174.81,20.0216]
[1730132400433,17.66593137,174.84,174.81,20.0216]
[1730132401339,17.66593137,174.84,174.81,14.3012]
[1730132401531,17.66593137,174.85,174.81,14.3012]
[1730132402043,17.66593137,174.86,174.81,14.3012]
[1730132402226,75.7182,174.88,174.82,17.66593137]
[1730132402227,17.66593137,174.87,174.82,17.66593137]
[1730132402424,30.0,174.83,174.81,25.62157342]
[1730132402748,30.0,174.83,174.82,11.32037342]
[1730132403041,30.0,174.83,174.82,31.32037342]
[1730132403238,30.0,174.83,174.82,37.04047342]
[1730132403441,30.0,174.83,174.82,61.55686366]
[1730132404045,11.89990472,174.9,174.83,20.0]
[1730132404249,0.5795313,174.9,174.85,11.32037342]
[1730132404557,0.5795313,174.9,174.83,20.0]
[1730132404558,30.0,174.86,174.84,23.776884]
[1730132404727,30.0,174.86,174.85,20.0]
[1730132404930,0.5795313,174.9,174.85,37.67998346]
[1730132405348,18.25951476,174.9,174.86,14.2971]
[1730132405531,30.0,174.87,174.86,20.0159]
[1730132407032,30.0,174.87,174.86,14.2971]
[1730132408048,30.0,174.87,174.86,51.97708346]
[1730132409159,0.5795313,174.9,174.87,20.0]
[1730132409454,30.0,174.88,174.87,20.0]
[1730132410441,0.5795313,174.9,174.88,20.0137]
[1730132410652,5.24,174.89,174.88,20.0137]
[1730132414058,5.24,174.89,174.86,20.0]
[1730132414263,5.24,174.89,174.86,37.67998346]
[1730132414447,5.24,174.89,174.87,17.67998346]
[1730132414644,5.24,174.89,174.86,37.67998346]
[1730132415051,5.24,174.89,174.86,17.67998346]
[1730132415554,5.24,174.89,174.87,20.0148]
[1730132418273,5.24,174.89,174.88,17.67998346]
[1730132418853,0.5795313,174.9,174.88,17.67998346]
[1730132419145,0.5795313,174.9,174.89,17.67998346]
[1730132420455,0.5795313,174.9,174.89,23.39778346]
[1730132420674,0.5795313,174.9,174.87,20.0145]
[1730132421142,0.5795313,174.9,174.87,37.69448346]
[1730132421765,0.5795313,174.9,174.87,20.0145]
[1730132422376,30.5795313,174.9,174.87,20.0145]
[1730132422668,17.67998346,174.89,174.87,14.2963]
[1730132423669,48.25951476,174.9,174.87,14.2963]
[1730132424057,30.5795313,174.9,174.87,14.2963]
[1730132425169,41.89550648,174.9,174.87,14.2963]
[1730132425773,11.31597518,174.89,174.87,14.2963]
[1730132426973,11.31597518,174.88,174.86,5.7188]
[1730132427150,11.31597518,174.87,174.85,6.5226233]
[1730132427543,11.31597518,174.86,174.85,0.8035233]
[1730132428170,11.31597518,174.86,174.84,14.2984]
[1730132428351,11.31597518,174.85,174.84,14.2984]
[1730132428754,11.31597518,174.85,174.84,20.0179]
[1730132429059,11.31597518,174.85,174.8,20.0228]
[1730132429460,11.31597518,174.84,174.8,20.82656118]
[1730132430474,11.31597518,174.81,174.8,20.0228]
[1730132431551,11.31597518,174.81,174.8,14.302]
[1730132431768,76.6243,174.87,174.8,14.302]
[1730132431957,11.31597518,174.81,174.8,14.302]
[1730132432157,11.31597518,174.81,174.79,0.80380825]
[1730132432571,11.31597518,174.8,174.76,20.0268]
[1730132432871,11.31597518,174.77,174.71,11.31597518]
[1730132433068,11.31597518,174.75,174.72,20.0313]
[1730132433455,11.31597518,174.74,174.72,20.0313]
[1730132433658,11.31597518,174.74,174.72,20.83544062]
[1730132433870,11.31597518,174.73,174.72,20.83544062]
[1730132434485,11.31597518,174.73,174.72,0.80414062]
[1730132434486,17.71707541,174.73,174.72,0.80414062]
[1730132434662,17.71707541,174.73,174.71,5.7236]
[1730132435576,17.71707541,174.72,174.7,14.3096]
[1730132435752,17.71707541,174.71,174.67,6.52915285]
[1730132435950,17.71707541,174.7,174.67,6.52915285]
[1730132436362,17.71707541,174.7,174.67,20.84185285]
[1730132436774,17.71707541,174.71,174.67,20.84185285]
[1730132436966,17.71707541,174.72,174.67,20.84185285]
[1730132438263,17.71707541,174.72,174.67,20.0375]
[1730132438475,17.71707541,174.72,174.67,38.59183467]
[1730132438782,17.71707541,174.73,174.67,38.59183467]
[1730132438983,16.1014,174.79,174.72,17.71707541]
[1730132439279,17.71707541,174.77,174.71,17.71707541]
[1730132439984,17.71707541,174.76,174.71,17.71707541]
[1730132440177,17.71707541,174.77,174.71,17.71707541]
[1730132440379,17.71707541,174.77,174.72,20.032]
[1730132440581,17.71707541,174.78,174.72,37.74907541]
[1730132440790,33.81847541,174.79,174.73,17.71707541]
[1730132441082,17.71707541,174.81,174.76,17.71707541]
[1730132441884,17.71707541,174.8,174.74,17.71707541]
[1730132442102,17.71707541,174.79,174.74,17.71707541]
[1730132442394,17.71707541,174.79,174.75,20.0285]
[1730132443185,17.71707541,174.77,174.75,20.0285]
[1730132443384,17.71707541,174.77,174.75,14.3061]
[1730132444084,17.71707541,174.77,174.75,20.0285]
[1730132444676,17.71707541,174.77,174.75,14.3061]
[1730132444869,17.71707541,174.76,174.75,14.3061]
[1730132445074,17.71707541,174.77,174.75,14.3061]
[1730132447000,17.71707541,174.76,174.75,14.3061]
[1730132447577,17.71707541,174.76,174.65,6.6675]
[1730132447578,17.71707541,174.76,174.72,20.032]
[1730132448982,17.71707541,174.75,174.72,20.032]
[1730132449583,17.71707541,174.75,174.72,14.3086]
[1730132454498,11.33628408,174.75,174.72,14.3086]
[1730132462597,11.33628408,174.74,174.72,14.3086]
[1730132463907,11.29574308,174.74,174.72,14.3086]
[1730132466610,11.29574308,174.74,174.69,63.812284]
[1730132466819,5.7218,174.77,174.7,11.33628408]
[1730132466820,11.33628408,174.76,174.7,11.33628408]
[1730132467693,11.33628408,174.76,174.71,20.0331]
[1730132467894,11.33628408,174.75,174.71,20.0331]
[1730132468712,11.33628408,174.75,174.71,14.3094]
[1730132468910,5.7218,174.77,174.71,14.3094]
[1730132469216,11.33628408,174.76,174.71,14.3094]
[1730132470215,11.33628408,174.76,174.71,20.0331]
[1730132472114,11.33628408,174.75,174.71,14.3094]
[1730132473215,11.33628408,174.76,174.71,14.3094]
[1730132478614,11.33628408,174.76,174.71,20.0331]
[1730132483419,5.24,174.73,174.71,20.0331]
[1730132486834,5.24,174.73,174.71,14.3094]
[1730132489712,5.24,174.73,174.71,20.0331]
[1730132490914,5.24,174.73,174.71,14.3094]
[1730132492132,5.24,174.73,174.71,20.0331]
[1730132494238,5.24,174.73,174.71,14.3094]
[1730132498721,11.33628408,174.74,174.71,14.3094]
[1730132501743,30.0,174.72,174.71,14.3094]
[1730132507637,30.0,174.72,174.69,20.0354]
[1730132509947,30.0,174.72,174.7,11.33628408]
[1730132510123,30.0,174.72,174.71,5.7237]
[1730132514034,30.0,174.72,174.7,20.0342]
[1730132517449,11.33628408,174.75,174.7,20.0342]
[1730132518838,11.33628408,174.75,174.7,14.3102]
[1730132521855,5.24,174.71,174.7,14.3102]
[1730132522443,5.24,174.71,174.7,20.0342]
[1730132523555,5.24,174.71,174.7,14.3102]
[1730132525064,11.33628408,174.75,174.7,14.3102]
[1730132525661,11.33628408,174.75,174.7,20.0342]
[1730132529775,11.33628408,174.76,174.7,20.0342]
[1730132530075,30.0,174.71,174.7,20.0342]
[1730132531553,30.0,174.71,174.7,14.3102]
[1730132532660,11.33628408,174.76,174.7,14.3102]
[1730132534653,5.722,174.77,174.69,11.33628408]
[1730132534654,17.05828408,174.77,174.69,11.33628408]
[1730132535168,5.722,174.77,174.69,0.85873694]
[1730132535349,11.33628408,174.79,174.72,11.33628408]
[1730132535554,11.33628408,174.78,174.72,11.33628408]
[1730132536467,11.33628408,174.78,174.73,20.0308]
[1730132537656,11.33628408,174.77,174.73,20.0308]
[1730132538367,11.33628408,174.77,174.74,5.7227]
[1730132540662,11.33628408,174.78,174.72,11.33628408]
[1730132541772,30.0,174.74,174.72,11.33628408]
[1730132541974,30.0,174.74,174.73,5.7231]
[1730132543676,29.87942376,174.74,174.73,5.7231]
[1730132545661,29.87942376,174.74,174.72,20.0316]
[1730132546951,29.37942376,174.74,174.72,14.3082]
[1730132551064,40.71570784,174.74,174.71,5.7237]
[1730132551472,40.71570784,174.74,174.71,20.0331]
[1730132551855,29.37942376,174.74,174.71,20.0331]
[1730132552671,29.37942376,174.74,174.71,14.3094]
[1730132558379,29.37942376,174.74,174.71,25.64568408]
[1730132558781,11.33628408,174.76,174.71,25.64568408]
[1730132558977,11.33628408,174.76,174.71,14.3094]
[1730132559363,11.33628408,174.76,174.71,20.0331]
[1730132559685,11.33628408,174.75,174.71,20.0331]
[1730132560997,11.33628408,174.75,174.71,14.3094]
[1730132561864,5.24,174.73,174.71,14.3094]
[1730132564468,5.24,174.73,174.71,11.33628408]
[1730132564681,5.24,174.73,174.7,11.33628408]
[1730132565691,5.24,174.73,174.71,20.0331]
[1730132569394,5.24,174.73,174.71,20.0331]
[1730132569592,5.24,174.73,174.7,11.33628408]
[1730132570789,5.24,174.73,174.71,20.0331]
[1730132574598,5.24,174.73,174.71,14.3094]
[1730132579279,11.33628408,174.76,174.71,14.3094]
[1730132582301,29.38,174.72,174.71,14.3094]
[1730132597513,11.33628408,174.76,174.71,14.3094]
[1730132598311,5.7215,174.78,174.71,25.64568408]
[1730132598492,17.05778408,174.78,174.71,25.64568408]
[1730132598784,11.33628408,174.77,174.71,25.64568408]
[1730132599192,11.33628408,174.76,174.71,25.64568408]
[1730132599498,11.33628408,174.76,174.71,31.36938408]
[1730132600596,11.33628408,174.76,174.71,14.3094]
[1730132602330,11.33628408,174.76,174.71,31.36938408]
[1730132602705,11.33628408,174.76,174.71,20.0331]
[1730132602912,5.7215,174.78,174.71,20.0331]
[1730132602913,5.24,174.72,174.71,20.0331]
[1730132603821,5.24,174.72,174.71,14.3094]
[1730132607723,5.24,174.72,174.65,20.04]
[1730132609507,5.24,174.72,174.65,14.3143]
[1730132613412,5.24,174.72,174.65,20.04]
[1730132614304,5.24,174.72,174.67,0.858912]
[1730132614513,5.24,174.72,174.68,20.0365]
[1730132616223,5.24,174.72,174.68,48.6602]
[1730132617229,0.1,174.8,174.68,48.6602]
[1730132617520,5.7211,174.79,174.68,48.6602]
[1730132618910,20.0,174.79,174.68,48.6602]
[1730132620210,20.1,174.81,174.68,48.6602]
[1730132620523,20.0,174.79,174.68,48.6602]
[1730132622933,5.7214,174.78,174.68,48.6602]
[1730132625407,5.7204,174.81,174.68,48.6602]
[1730132626517,20.0208,174.82,174.68,48.6602]
[1730132626907,20.0,174.81,174.68,48.6602]
[1730132628031,25.7201,174.82,174.68,48.6602]
[1730132636144,5.7201,174.82,174.68,77.2839]
[1730132637134,15.39388553,174.85,174.68,77.2839]
[1730132637347,25.8195,174.84,174.68,77.2839]
[1730132638047,25.7195,174.84,174.68,77.2839]
[1730132638233,25.8195,174.84,174.68,77.2839]
[1730132639536,25.7195,174.84,174.68,77.2839]
[1730132639932,25.8195,174.84,174.68,77.2839]
[1730132642151,5.93543282,174.86,174.68,77.2839]
[1730132642446,0.5795313,174.9,174.76,0.1]
[1730132642649,0.5795313,174.9,174.69,25.4760787]
[1730132642650,0.5795313,174.9,174.75,6.51026117]
[1730132642863,20.4042,174.77,174.75,6.51026117]
[1730132643030,10.8084,174.77,174.75,6.51026117]
[1730132643235,0.5795313,174.9,174.76,20.0]
[1730132643545,0.5795313,174.9,174.76,20.95832465]
[1730132644254,0.5795313,174.9,174.76,20.85832465]
[1730132645447,26.2971313,174.9,174.76,20.85832465]
[1730132645644,20.0,174.89,174.76,20.85832465]
[1730132648151,5.7179,174.89,174.76,0.85832465]
[1730132648454,20.1,174.88,174.76,0.85832465]
[1730132649128,20.0,174.88,174.76,0.85832465]
[1730132649329,20.0,174.87,174.76,0.85832465]
[1730132650451,0.1,174.88,174.76,0.85832465]
[1730132650636,20.0,174.86,174.76,0.85832465]
[1730132652376,0.1,174.88,174.76,0.85832465]
[1730132652538,20.0,174.86,174.76,0.85832465]
[1730132653462,25.719,174.86,174.76,0.85832465]
[1730132658650,25.719,174.86,174.71,0.1]
[1730132660159,25.719,174.86,174.71,0.93220008]
[1730132660345,25.719,174.86,174.71,0.83220008]
[1730132660663,25.719,174.86,174.71,0.93220008]
[1730132661658,25.719,174.86,174.71,0.83220008]
[1730132662154,25.719,174.86,174.7,20.1]
[1730132662652,25.719,174.86,174.71,0.83220008]
[1730132669459,25.719,174.86,174.71,0.93220008]
[1730132673762,25.719,174.86,174.71,0.83220008]
[1730132675254,25.719,174.86,174.71,0.93220008]
[1730132675467,25.719,174.86,174.71,0.83220008]
[1730132675655,25.719,174.86,174.71,0.93220008]
[1730132676373,25.719,174.86,174.71,0.83220008]